[Event "*** Titled Tuesday Blitz"]
[Site "Chess.com"]
[Date "2021.02.09"]
[Round "6"]
[White "Bigfish1995"]
[Black "GoltsevDmitry2000"]
[Result "0-1"]
[WhiteElo "2974"]
[BlackElo "2732"]
[TimeControl "180+1"]
[EndTime "11:08:29 PST"]
[Termination "GoltsevDmitry2000 won by checkmate"]

1. e4 {[%clk 0:03:00.9]} 1... e6 {[%clk 0:02:56.5]} 2. f4 {[%clk 0:02:59.9]}
2... d5 {[%clk 0:02:54.3]} 3. e5 {[%clk 0:03:00]} 3... c5 {[%clk 0:02:52.8]} 4.
Nf3 {[%clk 0:03:00]} 4... Nc6 {[%clk 0:02:47]} 5. c3 {[%clk 0:03:00.3]} 5...
Nge7 {[%clk 0:02:38.3]} 6. Na3 {[%clk 0:02:56.6]} 6... Nf5 {[%clk 0:02:36.7]} 7.
Nc2 {[%clk 0:02:56.3]} 7... Be7 {[%clk 0:02:32.8]} 8. d4 {[%clk 0:02:44.1]} 8...
cxd4 {[%clk 0:02:25.3]} 9. cxd4 {[%clk 0:02:42.8]} 9... Qb6 {[%clk 0:02:24.5]}
10. Bd3 {[%clk 0:02:42.7]} 10... O-O {[%clk 0:02:10.1]} 11. g4 {[%clk 0:02:24]}
11... Nh4 {[%clk 0:02:02.4]} 12. Nxh4 {[%clk 0:02:21.3]} 12... Bxh4+ {[%clk
0:02:00.1]} 13. Kf1 {[%clk 0:02:22.2]} 13... f6 {[%clk 0:01:58.2]} 14. g5 {[%clk
0:01:59]} 14... fxg5 {[%clk 0:01:45.9]} 15. Kg2 {[%clk 0:01:58.9]} 15... g6
{[%clk 0:01:25.6]} 16. Rf1 {[%clk 0:01:37.4]} 16... Bd7 {[%clk 0:01:06.8]} 17.
Qg4 {[%clk 0:01:21.6]} 17... Rac8 {[%clk 0:00:24.6]} 18. Be3 {[%clk 0:00:56.3]}
18... Qxb2 {[%clk 0:00:23.7]} 19. Rab1 {[%clk 0:00:49.9]} 19... Qxa2 {[%clk
0:00:22.3]} 20. Rxb7 {[%clk 0:00:49.4]} 20... Nb8 {[%clk 0:00:17.9]} 21. Rc1
{[%clk 0:00:27.4]} 21... Rc3 {[%clk 0:00:17.9]} 22. Qd1 {[%clk 0:00:17.6]} 22...
gxf4 {[%clk 0:00:16.4]} 23. Ra1 {[%clk 0:00:14.5]} 23... Qxa1 {[%clk 0:00:10.1]}
24. Nxa1 {[%clk 0:00:09.5]} 24... fxe3 {[%clk 0:00:10.1]} 25. Nc2 {[%clk
0:00:09.8]} 25... Rf2+ {[%clk 0:00:09.6]} 26. Kh3 {[%clk 0:00:09.6]} 26... Be7
{[%clk 0:00:04.1]} 27. Rxb8+ {[%clk 0:00:08.7]} 27... Kf7 {[%clk 0:00:04.8]} 28.
Rb7 {[%clk 0:00:07.8]} 28... e2 {[%clk 0:00:05.1]} 29. Qd2 {[%clk 0:00:06.2]}
29... e1=Q {[%clk 0:00:04.1]} 30. Qxe1 {[%clk 0:00:01.5]} 30... Rxd3+ {[%clk
0:00:04.6]} 31. Kg4 {[%clk 0:00:02.4]} 31... h5# {[%clk 0:00:04.7]} 0-1

[Event "*** Titled Tuesday Blitz"]
[Site "Chess.com"]
[Date "2021.02.09"]
[Round "6"]
[White "SkippingLaptop"]
[Black "ARTHURMOTIVATOR"]
[Result "0-1"]
[WhiteElo "2062"]
[BlackElo "2294"]
[TimeControl "180+1"]
[EndTime "11:08:29 PST"]
[Termination "ARTHURMOTIVATOR won on time"]

1. d4 {[%clk 0:03:00.6]} 1... Nf6 {[%clk 0:02:57.1]} 2. c4 {[%clk 0:02:57.5]}
2... c5 {[%clk 0:02:52.4]} 3. d5 {[%clk 0:02:53.9]} 3... g6 {[%clk 0:02:52.1]}
4. Nc3 {[%clk 0:02:48.6]} 4... Bg7 {[%clk 0:02:52.1]} 5. e4 {[%clk 0:02:40.6]}
5... d6 {[%clk 0:02:51.9]} 6. f3 {[%clk 0:02:36.4]} 6... O-O {[%clk 0:02:50.7]}
7. Be3 {[%clk 0:02:32.2]} 7... e6 {[%clk 0:02:48.8]} 8. Qd2 {[%clk 0:02:24.9]}
8... exd5 {[%clk 0:02:48.4]} 9. cxd5 {[%clk 0:02:20.9]} 9... a6 {[%clk
0:02:48.9]} 10. a4 {[%clk 0:02:05.2]} 10... Nbd7 {[%clk 0:02:49.1]} 11. a5
{[%clk 0:01:55.4]} 11... Ne5 {[%clk 0:02:37.7]} 12. Na4 {[%clk 0:01:34.5]} 12...
Nh5 {[%clk 0:02:19.8]} 13. Nb6 {[%clk 0:01:29.5]} 13... Rb8 {[%clk 0:02:14.4]}
14. Nxc8 {[%clk 0:01:24.6]} 14... Rxc8 {[%clk 0:02:10.9]} 15. Nh3 {[%clk
0:01:24.5]} 15... Qh4+ {[%clk 0:01:38.1]} 16. Bf2 {[%clk 0:01:17.7]} 16... Qxh3
{[%clk 0:01:36.5]} 17. gxh3 {[%clk 0:01:07.1]} 17... Nxf3+ {[%clk 0:01:35.8]}
18. Ke2 {[%clk 0:01:07.4]} 18... Nxd2 {[%clk 0:01:36.3]} 19. Kxd2 {[%clk
0:01:08.3]} 19... f5 {[%clk 0:01:26.3]} 20. exf5 {[%clk 0:00:51.5]} 20... Rxf5
{[%clk 0:01:23.5]} 21. Be3 {[%clk 0:00:38.7]} 21... Bxb2 {[%clk 0:01:18.6]} 22.
Rb1 {[%clk 0:00:37.3]} 22... c4 {[%clk 0:01:18.9]} 23. Bg2 {[%clk 0:00:27.2]}
23... c3+ {[%clk 0:01:15]} 24. Kc2 {[%clk 0:00:24.9]} 24... Nf4 {[%clk
0:01:10.7]} 25. Bxf4 {[%clk 0:00:20.4]} 25... Rxf4 {[%clk 0:01:10.3]} 26. Rhf1
{[%clk 0:00:18.6]} 26... Rcf8 {[%clk 0:01:07.5]} 27. Rxf4 {[%clk 0:00:17.2]}
27... Rxf4 {[%clk 0:01:06.1]} 28. Kb3 {[%clk 0:00:11.6]} 28... Kg7 {[%clk
0:00:50.1]} 29. Rf1 {[%clk 0:00:10.1]} 29... Rxf1 {[%clk 0:00:43.2]} 30. Bxf1
{[%clk 0:00:11]} 30... Kf6 {[%clk 0:00:43.3]} 31. Be2 {[%clk 0:00:11.2]} 31...
Ke5 {[%clk 0:00:42.8]} 32. Bg4 {[%clk 0:00:10.7]} 32... Kxd5 {[%clk 0:00:40.5]}
33. Bf3+ {[%clk 0:00:10.5]} 33... Kc5 {[%clk 0:00:36]} 34. Bxb7 {[%clk 0:00:08]}
34... Kb5 {[%clk 0:00:36]} 35. Bd5 {[%clk 0:00:05.8]} 35... g5 {[%clk
0:00:29.6]} 36. Be4 {[%clk 0:00:04.2]} 36... h6 {[%clk 0:00:28.5]} 37. Bd3+
{[%clk 0:00:02.1]} 37... Kxa5 {[%clk 0:00:28.4]} 38. Kc4 {[%clk 0:00:01.1]}
38... Kb6 {[%clk 0:00:28.3]} 39. Kd5 {[%clk 0:00:01.1]} 39... a5 {[%clk
0:00:25.2]} 0-1

[Event "*** Titled Tuesday Blitz"]
[Site "Chess.com"]
[Date "2021.02.09"]
[Round "6"]
[White "Homino"]
[Black "enriquetejedor"]
[Result "0-1"]
[WhiteElo "2305"]
[BlackElo "2541"]
[TimeControl "180+1"]
[EndTime "11:08:30 PST"]
[Termination "enriquetejedor won on time"]

1. e4 {[%clk 0:03:00.9]} 1... e5 {[%clk 0:02:58]} 2. Nf3 {[%clk 0:03:00.8]} 2...
Nc6 {[%clk 0:02:57.6]} 3. Bb5 {[%clk 0:03:01.4]} 3... Nf6 {[%clk 0:02:57.2]} 4.
O-O {[%clk 0:03:00.4]} 4... Nxe4 {[%clk 0:02:55.7]} 5. d4 {[%clk 0:03:00.8]}
5... exd4 {[%clk 0:02:37.1]} 6. Re1 {[%clk 0:02:55.5]} 6... d5 {[%clk
0:02:31.9]} 7. Nxd4 {[%clk 0:02:52.8]} 7... Bd6 {[%clk 0:01:32]} 8. f3 {[%clk
0:01:28.7]} 8... Bxh2+ {[%clk 0:01:20.1]} 9. Kxh2 {[%clk 0:01:10.2]} 9... Qh4+
{[%clk 0:01:15.4]} 10. Kg1 {[%clk 0:01:10.1]} 10... Qf2+ {[%clk 0:01:13.5]} 11.
Kh2 {[%clk 0:01:08.8]} 11... Qg3+ {[%clk 0:00:47.6]} 12. Kg1 {[%clk 0:00:51.1]}
12... O-O {[%clk 0:00:20.5]} 13. Bxc6 {[%clk 0:00:43.1]} 13... Qf2+ {[%clk
0:00:19.2]} 14. Kh2 {[%clk 0:00:40.4]} 14... Qg3+ {[%clk 0:00:18.7]} 15. Kg1
{[%clk 0:00:38.1]} 15... Nf2 {[%clk 0:00:14.4]} 16. Qe2 {[%clk 0:00:20.2]} 16...
Nh3+ {[%clk 0:00:13.3]} 17. Kh1 {[%clk 0:00:19.3]} 17... Nf2+ {[%clk 0:00:06.8]}
18. Kg1 {[%clk 0:00:19.3]} 18... Nh3+ {[%clk 0:00:07.1]} 19. Kh1 {[%clk
0:00:18.7]} 19... bxc6 {[%clk 0:00:08]} 20. Nc3 {[%clk 0:00:16.3]} 20... Nf2+
{[%clk 0:00:07.6]} 21. Kg1 {[%clk 0:00:16]} 21... Nh3+ {[%clk 0:00:02.9]} 22.
Kh1 {[%clk 0:00:16.1]} 22... Ba6 {[%clk 0:00:03.2]} 23. Qd2 {[%clk 0:00:11.1]}
23... Rfe8 {[%clk 0:00:02.3]} 24. Re3 {[%clk 0:00:05.9]} 24... Nf2+ {[%clk
0:00:02.3]} 25. Kg1 {[%clk 0:00:05.5]} 25... Nh3+ {[%clk 0:00:02.6]} 26. Kh1
{[%clk 0:00:05.8]} 26... Nf2+ {[%clk 0:00:02.8]} 27. Kg1 {[%clk 0:00:06]} 27...
Rxe3 {[%clk 0:00:02.8]} 28. Qxe3 {[%clk 0:00:05.6]} 28... Nh3+ {[%clk
0:00:03.2]} 29. Kh1 {[%clk 0:00:05.6]} 29... Bf1 {[%clk 0:00:02.9]} 30. Qd2
{[%clk 0:00:03.4]} 30... Nf2+ {[%clk 0:00:03.3]} 31. Qxf2 {[%clk 0:00:01.9]}
31... Qxf2 {[%clk 0:00:03.7]} 0-1

[Event "*** Titled Tuesday Blitz"]
[Site "Chess.com"]
[Date "2021.02.09"]
[Round "6"]
[White "andrzej"]
[Black "anon481216"]
[Result "1-0"]
[WhiteElo "2345"]
[BlackElo "2468"]
[TimeControl "180+1"]
[EndTime "11:08:30 PST"]
[Termination "andrzej won by resignation"]

1. e4 {[%clk 0:03:00]} 1... c5 {[%clk 0:02:58.5]} 2. Nc3 {[%clk 0:03:00.7]} 2...
Nc6 {[%clk 0:02:58.1]} 3. Bb5 {[%clk 0:03:01.2]} 3... Nd4 {[%clk 0:02:57.8]} 4.
Nf3 {[%clk 0:03:02]} 4... e6 {[%clk 0:02:57.5]} 5. O-O {[%clk 0:02:57.3]} 5...
a6 {[%clk 0:02:56.5]} 6. Bd3 {[%clk 0:02:55.1]} 6... Nc6 {[%clk 0:02:54.1]} 7.
Re1 {[%clk 0:02:46.8]} 7... d6 {[%clk 0:02:50.5]} 8. a3 {[%clk 0:02:43.8]} 8...
Nf6 {[%clk 0:02:49.6]} 9. Rb1 {[%clk 0:02:43.5]} 9... Be7 {[%clk 0:02:46.9]} 10.
b4 {[%clk 0:02:43.9]} 10... O-O {[%clk 0:02:29.9]} 11. bxc5 {[%clk 0:02:41.5]}
11... dxc5 {[%clk 0:02:29.6]} 12. e5 {[%clk 0:02:39.4]} 12... Nd5 {[%clk
0:02:24.6]} 13. Ne4 {[%clk 0:02:34.8]} 13... b5 {[%clk 0:02:22.8]} 14. Bb2
{[%clk 0:02:31.2]} 14... Bb7 {[%clk 0:02:11.9]} 15. g3 {[%clk 0:02:13.8]} 15...
h6 {[%clk 0:02:06.4]} 16. Bf1 {[%clk 0:02:13.1]} 16... Nb6 {[%clk 0:01:56.9]}
17. d3 {[%clk 0:02:07.1]} 17... Qd7 {[%clk 0:01:45.3]} 18. Bg2 {[%clk 0:01:59]}
18... Nd4 {[%clk 0:01:43.4]} 19. Nxd4 {[%clk 0:01:55.1]} 19... cxd4 {[%clk
0:01:43.5]} 20. Qg4 {[%clk 0:01:54.1]} 20... Kh8 {[%clk 0:01:39.6]} 21. Bc1
{[%clk 0:01:49.4]} 21... Rfc8 {[%clk 0:01:24.6]} 22. Qh5 {[%clk 0:01:46.1]}
22... Bf8 {[%clk 0:01:23.3]} 23. Ng5 {[%clk 0:01:23.5]} 23... Kg8 {[%clk
0:01:22.2]} 24. Ne4 {[%clk 0:01:22.1]} 24... Rxc2 {[%clk 0:01:17.8]} 25. Bxh6
{[%clk 0:01:21.3]} 25... Bxe4 {[%clk 0:01:12.5]} 26. Rxe4 {[%clk 0:01:12]} 26...
gxh6 {[%clk 0:01:03.3]} 27. Rg4+ {[%clk 0:01:09.5]} 27... Kh8 {[%clk 0:00:58.4]}
28. Bxa8 {[%clk 0:00:50.4]} 28... Nxa8 {[%clk 0:00:58]} 29. Qh4 {[%clk
0:00:48.3]} 29... Bg7 {[%clk 0:00:52]} 30. Rxd4 {[%clk 0:00:47.8]} 30... Qc6
{[%clk 0:00:41.2]} 31. Rd8+ {[%clk 0:00:43]} 31... Kh7 {[%clk 0:00:41.1]} 32.
Qe7 {[%clk 0:00:39]} 32... Qf3 {[%clk 0:00:31.6]} 33. Qa7 {[%clk 0:00:32.1]}
33... Nc7 {[%clk 0:00:17.7]} 34. Rd7 {[%clk 0:00:32.6]} 34... Bxe5 {[%clk
0:00:12.2]} 35. Rf1 {[%clk 0:00:25.7]} 35... Kg7 {[%clk 0:00:11.6]} 36. d4
{[%clk 0:00:24.1]} 36... Rxf2 {[%clk 0:00:07.4]} 37. Rxf2 {[%clk 0:00:20]} 37...
Qd1+ {[%clk 0:00:08]} 38. Kg2 {[%clk 0:00:20.4]} 1-0

[Event "*** Titled Tuesday Blitz"]
[Site "Chess.com"]
[Date "2021.02.09"]
[Round "6"]
[White "Lion-Al-Messi"]
[Black "pavelalexandru07"]
[Result "0-1"]
[WhiteElo "2527"]
[BlackElo "2349"]
[TimeControl "180+1"]
[EndTime "11:08:30 PST"]
[Termination "pavelalexandru07 won by resignation"]

1. e4 {[%clk 0:02:15.5]} 1... c5 {[%clk 0:02:59.5]} 2. Nf3 {[%clk 0:02:15.6]}
2... d6 {[%clk 0:02:58.7]} 3. d4 {[%clk 0:02:16.2]} 3... cxd4 {[%clk 0:02:58.1]}
4. Nxd4 {[%clk 0:02:17.1]} 4... Nf6 {[%clk 0:02:58.5]} 5. Nc3 {[%clk 0:02:17.7]}
5... a6 {[%clk 0:02:57.7]} 6. h3 {[%clk 0:02:18.1]} 6... e5 {[%clk 0:02:55.4]}
7. Nde2 {[%clk 0:02:17.5]} 7... Be6 {[%clk 0:02:54.4]} 8. g4 {[%clk 0:02:17.7]}
8... h6 {[%clk 0:02:41.8]} 9. Bg2 {[%clk 0:02:17.4]} 9... Nbd7 {[%clk
0:02:37.5]} 10. Ng3 {[%clk 0:02:16.9]} 10... g6 {[%clk 0:02:36.3]} 11. Be3
{[%clk 0:02:15]} 11... Be7 {[%clk 0:02:34.9]} 12. Qd2 {[%clk 0:02:11.9]} 12...
h5 {[%clk 0:02:28.6]} 13. g5 {[%clk 0:02:11.5]} 13... Nh7 {[%clk 0:02:23.4]} 14.
h4 {[%clk 0:02:10.6]} 14... O-O {[%clk 0:02:14.1]} 15. Nd5 {[%clk 0:02:07.9]}
15... Bxd5 {[%clk 0:01:58.3]} 16. exd5 {[%clk 0:02:08.8]} 16... f5 {[%clk
0:01:54.4]} 17. gxf6 {[%clk 0:02:08.9]} 17... Ndxf6 {[%clk 0:01:50.7]} 18. Qd3
{[%clk 0:02:08.1]} 18... Kg7 {[%clk 0:01:48]} 19. Rg1 {[%clk 0:02:06.6]} 19...
Ng4 {[%clk 0:01:46]} 20. Bh3 {[%clk 0:02:06]} 20... Bxh4 {[%clk 0:01:42.1]} 21.
Nxh5+ {[%clk 0:02:02.9]} 21... gxh5 {[%clk 0:01:39.2]} 22. Bxg4 {[%clk
0:02:03.2]} 22... hxg4 {[%clk 0:01:39.5]} 23. Rxg4+ {[%clk 0:02:04.1]} 23... Kh8
{[%clk 0:01:40]} 24. Qg6 {[%clk 0:02:04.2]} 24... Rg8 {[%clk 0:01:29.9]} 25. Qh5
{[%clk 0:02:04.2]} 25... Rxg4 {[%clk 0:01:29.5]} 26. Qxg4 {[%clk 0:02:05.1]}
26... Qf6 {[%clk 0:01:28.1]} 27. O-O-O {[%clk 0:02:03.5]} 27... Rg8 {[%clk
0:01:27.4]} 28. Qh3 {[%clk 0:02:03.1]} 28... Bg5 {[%clk 0:01:17.7]} 29. Rh1
{[%clk 0:02:00.9]} 29... Bxe3+ {[%clk 0:01:17.5]} 30. fxe3 {[%clk 0:02:01.8]}
30... Qg7 {[%clk 0:01:15.4]} 31. a3 {[%clk 0:01:58.5]} 31... Rf8 {[%clk
0:01:13]} 32. Kb1 {[%clk 0:01:58.2]} 32... Rf2 {[%clk 0:01:09.3]} 33. Qc8+
{[%clk 0:01:57.8]} 33... Rf8 {[%clk 0:01:09.6]} 34. Qh3 {[%clk 0:01:56.8]} 34...
Qg6 {[%clk 0:01:04.7]} 35. Qd7 {[%clk 0:01:53.5]} 35... Kg8 {[%clk 0:00:59.3]}
36. Qxb7 {[%clk 0:01:48.1]} 36... Ng5 {[%clk 0:00:52.4]} 37. Qxa6 {[%clk
0:01:45.4]} 37... Rf2 {[%clk 0:00:45]} 38. Qc8+ {[%clk 0:01:44.4]} 38... Kg7
{[%clk 0:00:44]} 39. Qc7+ {[%clk 0:01:42.6]} 39... Nf7 {[%clk 0:00:41]} 40. a4
{[%clk 0:01:40.4]} 40... Qg2 {[%clk 0:00:38.7]} 41. Rd1 {[%clk 0:01:38.3]} 41...
Rd2 {[%clk 0:00:36.4]} 42. Rxd2 {[%clk 0:01:29.9]} 42... Qxd2 {[%clk 0:00:35.1]}
43. e4 {[%clk 0:01:29.5]} 43... Qe1+ {[%clk 0:00:33.6]} 44. Ka2 {[%clk
0:01:28.6]} 44... Qxe4 {[%clk 0:00:34.2]} 45. c4 {[%clk 0:01:25.7]} 45... Qc2
{[%clk 0:00:31.6]} 46. Qa7 {[%clk 0:01:22]} 46... Qxc4+ {[%clk 0:00:31]} 47. Ka3
{[%clk 0:01:20.5]} 47... Qd3+ {[%clk 0:00:28.7]} 48. b3 {[%clk 0:01:16.7]} 48...
Qxd5 {[%clk 0:00:26]} 49. a5 {[%clk 0:01:16.9]} 49... e4 {[%clk 0:00:22.2]} 50.
Qb6 {[%clk 0:01:08.3]} 50... Qc5+ {[%clk 0:00:09.5]} 51. Qxc5 {[%clk 0:01:05.9]}
51... dxc5 {[%clk 0:00:10]} 52. a6 {[%clk 0:01:02.3]} 52... Nd6 {[%clk
0:00:10.4]} 53. Ka4 {[%clk 0:01:00.7]} 53... Nc8 {[%clk 0:00:10.6]} 54. Kb5
{[%clk 0:00:59.4]} 54... e3 {[%clk 0:00:10.9]} 55. Kc6 {[%clk 0:00:58.8]} 55...
e2 {[%clk 0:00:11.4]} 56. Kb7 {[%clk 0:00:59]} 56... e1=Q {[%clk 0:00:12.1]} 57.
Kxc8 {[%clk 0:00:59.3]} 57... Qa5 {[%clk 0:00:11.6]} 58. Kb7 {[%clk 0:00:58.5]}
58... Qb5+ {[%clk 0:00:12.1]} 59. Kc7 {[%clk 0:00:58.5]} 59... Qxa6 {[%clk
0:00:12]} 60. Kd7 {[%clk 0:00:58]} 60... Qb5+ {[%clk 0:00:11.8]} 0-1

[Event "*** Titled Tuesday Blitz"]
[Site "Chess.com"]
[Date "2021.02.09"]
[Round "6"]
[White "NovikovaGalina"]
[Black "gross-aleks"]
[Result "0-1"]
[WhiteElo "2385"]
[BlackElo "2568"]
[TimeControl "180+1"]
[EndTime "11:08:31 PST"]
[Termination "gross-aleks won on time"]

1. e4 {[%clk 0:03:00.4]} 1... c5 {[%clk 0:02:58.9]} 2. Nf3 {[%clk 0:03:00.2]}
2... e6 {[%clk 0:02:58.7]} 3. d4 {[%clk 0:02:54.2]} 3... cxd4 {[%clk 0:02:59.6]}
4. Nxd4 {[%clk 0:02:55.1]} 4... a6 {[%clk 0:02:59.2]} 5. Be2 {[%clk 0:02:53.5]}
5... Bc5 {[%clk 0:02:56.4]} 6. Nb3 {[%clk 0:02:51.3]} 6... Ba7 {[%clk
0:02:52.7]} 7. Nc3 {[%clk 0:02:44.1]} 7... Qc7 {[%clk 0:02:52.1]} 8. h4 {[%clk
0:02:27.8]} 8... Nf6 {[%clk 0:02:43.2]} 9. Bg5 {[%clk 0:02:24.1]} 9... b5 {[%clk
0:02:33.3]} 10. Qd2 {[%clk 0:02:01]} 10... Bb7 {[%clk 0:02:28.3]} 11. Bf3 {[%clk
0:01:37.4]} 11... Nc6 {[%clk 0:02:24.5]} 12. O-O-O {[%clk 0:01:35.9]} 12... Ne5
{[%clk 0:02:20.5]} 13. Qe2 {[%clk 0:01:02.1]} 13... Rc8 {[%clk 0:02:11.5]} 14.
Be3 {[%clk 0:00:54.1]} 14... Bxe3+ {[%clk 0:02:07.1]} 15. fxe3 {[%clk
0:00:52.8]} 15... Nc4 {[%clk 0:01:51.2]} 16. e5 {[%clk 0:00:39.8]} 16... Nxe5
{[%clk 0:01:49.5]} 17. Bxb7 {[%clk 0:00:39.4]} 17... Qxb7 {[%clk 0:01:49.2]} 18.
g4 {[%clk 0:00:29.3]} 18... Nfxg4 {[%clk 0:01:45.7]} 19. Rhg1 {[%clk 0:00:28.3]}
19... h5 {[%clk 0:01:45.1]} 20. Nd4 {[%clk 0:00:25.6]} 20... b4 {[%clk
0:01:39.6]} 21. Na4 {[%clk 0:00:12.2]} 21... O-O {[%clk 0:01:35.6]} 22. Kb1
{[%clk 0:00:10.7]} 22... f5 {[%clk 0:01:10.8]} 23. b3 {[%clk 0:00:10.8]} 23...
Rc7 {[%clk 0:01:04.9]} 24. Nb2 {[%clk 0:00:10.7]} 24... Rfc8 {[%clk 0:01:04.4]}
25. Nd3 {[%clk 0:00:11]} 25... Nxd3 {[%clk 0:00:58.1]} 26. Qxd3 {[%clk
0:00:11.9]} 26... Rc3 {[%clk 0:00:53.5]} 27. Qd2 {[%clk 0:00:10.1]} 27... Qe4
{[%clk 0:00:48.6]} 28. Rc1 {[%clk 0:00:05.6]} 28... Rxe3 {[%clk 0:00:45.3]} 29.
Rgd1 {[%clk 0:00:02.8]} 29... a5 {[%clk 0:00:43.6]} 30. Nxe6 {[%clk 0:00:03.2]}
30... dxe6 {[%clk 0:00:41.7]} 31. Qd7 {[%clk 0:00:03.2]} 31... Rec3 {[%clk
0:00:38.9]} 32. Qe7 {[%clk 0:00:02.8]} 32... Rxc2 {[%clk 0:00:27.4]} 33. Rd8+
{[%clk 0:00:03.1]} 33... Kh7 {[%clk 0:00:27.1]} 34. Rxc8 {[%clk 0:00:02.8]}
34... Rxc8+ {[%clk 0:00:24.8]} 35. Kb2 {[%clk 0:00:03.7]} 35... Qd4+ {[%clk
0:00:24.4]} 36. Kb1 {[%clk 0:00:03.6]} 36... Qd3+ {[%clk 0:00:24.6]} 37. Kb2
{[%clk 0:00:03.8]} 37... Qd2+ {[%clk 0:00:24.8]} 0-1

[Event "*** Titled Tuesday Blitz"]
[Site "Chess.com"]
[Date "2021.02.09"]
[Round "6"]
[White "Shuvalov"]
[Black "KafkaesqueKnight"]
[Result "0-1"]
[WhiteElo "2505"]
[BlackElo "2177"]
[TimeControl "180+1"]
[EndTime "11:08:31 PST"]
[Termination "KafkaesqueKnight won on time"]

1. e4 {[%clk 0:02:58.3]} 1... c5 {[%clk 0:02:56.5]} 2. Nf3 {[%clk 0:02:57.9]}
2... d6 {[%clk 0:02:55.9]} 3. d4 {[%clk 0:02:58.1]} 3... cxd4 {[%clk 0:02:56.3]}
4. Nxd4 {[%clk 0:02:59]} 4... Nf6 {[%clk 0:02:56.5]} 5. Nc3 {[%clk 0:02:59.2]}
5... a6 {[%clk 0:02:56.9]} 6. Bg5 {[%clk 0:02:58.8]} 6... e6 {[%clk 0:02:56.5]}
7. f4 {[%clk 0:02:56.8]} 7... Qb6 {[%clk 0:02:56.7]} 8. Qd2 {[%clk 0:02:55.7]}
8... Nc6 {[%clk 0:02:56.7]} 9. Nxc6 {[%clk 0:02:40.4]} 9... bxc6 {[%clk
0:02:54.1]} 10. O-O-O {[%clk 0:02:11.3]} 10... Rb8 {[%clk 0:02:52.1]} 11. b3
{[%clk 0:02:11.3]} 11... d5 {[%clk 0:02:51.8]} 12. Kb1 {[%clk 0:02:03.5]} 12...
Ng4 {[%clk 0:02:44.6]} 13. f5 {[%clk 0:01:36.6]} 13... Bb4 {[%clk 0:02:34.9]}
14. fxe6 {[%clk 0:01:32]} 14... Bxe6 {[%clk 0:02:20.9]} 15. exd5 {[%clk
0:01:32]} 15... cxd5 {[%clk 0:02:19.6]} 16. h3 {[%clk 0:01:02.7]} 16... Ne5
{[%clk 0:01:04.4]} 17. Be3 {[%clk 0:00:49.7]} 17... Qa5 {[%clk 0:00:55.2]} 18.
Bd4 {[%clk 0:00:49.6]} 18... Nc6 {[%clk 0:00:53.1]} 19. Bxg7 {[%clk 0:00:49.5]}
19... Rg8 {[%clk 0:00:53.7]} 20. Bf6 {[%clk 0:00:38.9]} 20... Rg6 {[%clk
0:00:52.9]} 21. Bh8 {[%clk 0:00:24.5]} 21... d4 {[%clk 0:00:44.9]} 22. Bxd4
{[%clk 0:00:13.5]} 22... Nxd4 {[%clk 0:00:44.6]} 23. Qxd4 {[%clk 0:00:14.4]}
23... Bxc3 {[%clk 0:00:44.9]} 24. Qd6 {[%clk 0:00:12.3]} 24... Qb6 {[%clk
0:00:21.7]} 25. Qd3 {[%clk 0:00:08.1]} 25... Rd8 {[%clk 0:00:19.7]} 26. Qxc3
{[%clk 0:00:06.9]} 26... Rxd1+ {[%clk 0:00:19.3]} 27. Kb2 {[%clk 0:00:07.8]}
27... Kf8 {[%clk 0:00:16.8]} 28. Qh8+ {[%clk 0:00:06.3]} 28... Ke7 {[%clk
0:00:17.3]} 29. Qc3 {[%clk 0:00:05.5]} 29... Qd4 {[%clk 0:00:17.2]} 30. Qxd4
{[%clk 0:00:03]} 30... Rxd4 {[%clk 0:00:18.1]} 31. Bd3 {[%clk 0:00:03.3]} 31...
Rxg2 {[%clk 0:00:17.2]} 32. Kc3 {[%clk 0:00:03.4]} 32... Rf4 {[%clk 0:00:16.7]}
33. h4 {[%clk 0:00:03.5]} 33... Rff2 {[%clk 0:00:15.7]} 34. Re1 {[%clk
0:00:03.5]} 34... Kf6 {[%clk 0:00:15.5]} 35. a4 {[%clk 0:00:03.2]} 35... Bf5
{[%clk 0:00:15.9]} 36. Bxf5 {[%clk 0:00:02.1]} 36... Rxf5 {[%clk 0:00:16.8]} 37.
Kb4 {[%clk 0:00:01.6]} 37... Rxc2 {[%clk 0:00:15.8]} 0-1

[Event "*** Titled Tuesday Blitz"]
[Site "Chess.com"]
[Date "2021.02.09"]
[Round "6"]
[White "swisspower96"]
[Black "sergoy"]
[Result "1-0"]
[WhiteElo "2687"]
[BlackElo "2845"]
[TimeControl "180+1"]
[EndTime "11:08:32 PST"]
[Termination "swisspower96 won by resignation"]

1. d4 {[%clk 0:03:00.9]} 1... Nf6 {[%clk 0:02:54.9]} 2. c4 {[%clk 0:03:01.1]}
2... e6 {[%clk 0:02:54.7]} 3. Nf3 {[%clk 0:03:01.2]} 3... d5 {[%clk 0:02:54.5]}
4. g3 {[%clk 0:03:00.9]} 4... Bb4+ {[%clk 0:02:54.3]} 5. Bd2 {[%clk 0:03:00.9]}
5... Be7 {[%clk 0:02:54.7]} 6. Bg2 {[%clk 0:03:01.4]} 6... O-O {[%clk
0:02:54.9]} 7. O-O {[%clk 0:03:02.1]} 7... c6 {[%clk 0:02:55.6]} 8. Qc2 {[%clk
0:03:02.3]} 8... Nbd7 {[%clk 0:02:56]} 9. Bf4 {[%clk 0:03:02.7]} 9... b6 {[%clk
0:02:56.1]} 10. Rc1 {[%clk 0:03:03.4]} 10... Ba6 {[%clk 0:02:52.6]} 11. cxd5
{[%clk 0:02:33.9]} 11... cxd5 {[%clk 0:02:53.5]} 12. Bc7 {[%clk 0:02:27.1]}
12... Qe8 {[%clk 0:02:50.3]} 13. Nc3 {[%clk 0:02:25.1]} 13... Rc8 {[%clk
0:02:07.4]} 14. Bf4 {[%clk 0:02:24.5]} 14... b5 {[%clk 0:02:04.6]} 15. Qd3
{[%clk 0:02:03.8]} 15... Nb6 {[%clk 0:01:18.7]} 16. a4 {[%clk 0:02:02.6]} 16...
b4 {[%clk 0:01:17.6]} 17. Qxa6 {[%clk 0:01:55.6]} 17... bxc3 {[%clk 0:01:17.7]}
18. bxc3 {[%clk 0:01:50.1]} 18... Nc4 {[%clk 0:01:16.4]} 19. Ne5 {[%clk
0:01:40.1]} 19... Nxe5 {[%clk 0:00:53.5]} 20. Bxe5 {[%clk 0:01:41]} 20... Nd7
{[%clk 0:00:53.3]} 21. Bf4 {[%clk 0:01:41.3]} 21... Ra8 {[%clk 0:00:45.8]} 22.
c4 {[%clk 0:01:37.1]} 22... Nb6 {[%clk 0:00:45.3]} 23. c5 {[%clk 0:01:31.6]}
23... Nc4 {[%clk 0:00:43.5]} 24. e4 {[%clk 0:01:30.8]} 24... Qd8 {[%clk
0:00:35.5]} 25. exd5 {[%clk 0:01:26.2]} 25... exd5 {[%clk 0:00:36.4]} 26. Qc6
{[%clk 0:01:19.2]} 26... Na5 {[%clk 0:00:33.2]} 27. Qxd5 {[%clk 0:01:17.3]}
27... Qxd5 {[%clk 0:00:33.1]} 28. Bxd5 {[%clk 0:01:14.3]} 28... Rad8 {[%clk
0:00:34]} 29. Bg2 {[%clk 0:01:07.9]} 29... Nb3 {[%clk 0:00:33]} 30. c6 {[%clk
0:00:26]} 30... Nxa1 {[%clk 0:00:24.8]} 31. Rxa1 {[%clk 0:00:25.4]} 31... Rxd4
{[%clk 0:00:21.5]} 32. c7 {[%clk 0:00:22.7]} 32... Rc4 {[%clk 0:00:20.3]} 33.
Rb1 {[%clk 0:00:20.9]} 33... Bc5 {[%clk 0:00:16.8]} 34. Bd5 {[%clk 0:00:17.9]}
34... Rc2 {[%clk 0:00:16.4]} 35. Rb8 {[%clk 0:00:18.1]} 35... Bxf2+ {[%clk
0:00:14]} 36. Kf1 {[%clk 0:00:18.3]} 36... Bc5 {[%clk 0:00:03.7]} 37. Bb7 {[%clk
0:00:14.9]} 37... Be7 {[%clk 0:00:02.8]} 38. Rxf8+ {[%clk 0:00:14.4]} 1-0